Cogmind - Beta 16 @@@ ROGUE MODE // 2026.01.05 @ 19:58:52 Player: leto Result: Destroyed by G-50 Soldier with Heavy Laser Performance ------------- Evolutions (2) 1000 Regions Visited (7) 1400 Robots Destroyed (154) 770 Value Destroyed (3924) 3924 Prototype IDs (18) 360 Alien Tech Used (0) 0 Bonus (412) 412 TOTAL SCORE: 7866 Bonus ------- High Alert Combat Kills 112 Aligned with FarCom 300 Cogmind --------- Core Integrity 0/550 Matter 271/300 Energy 51/280 System Corruption 0% Temperature Cool (9) Movement Treading (240) Ox1 Location -8/Materials Parts ------- > --- POWER (1) -------- Heavy Ion Engine > --- PROPULSION (4) --- Improved Treads Improved Treads Improved Treads > --- UTILITY (4) ------ Huge Storage Unit Core Shielding Core Shielding > --- WEAPON (2) ------- Improved Assault Rifle Shock Bomb Launcher > --- INVENTORY (25) --- Improved Ion Engine Light Treads Wheel Improved Flight Unit Cesium-ion Thruster Cesium-ion Thruster Cesium-ion Thruster Improved VTOL Module Improved VTOL Module Improved VTOL Module Improved VTOL Module Propulsion Shielding Utility Shielding Utility Shielding Hacking Suite Hacking Suite Hacking Suite Improved Assault Rifle Mini Grenade Launcher Mini Grenade Launcher Mini Grenade Launcher Mini Grenade Launcher Datajack Scythe Peak State ------------ > --- POWER ------------ Reinforced Ion Engine > --- PROPULSION ------- Improved Treads Improved Treads Armored Treads Improved VTOL Module > --- UTILITY ---------- Huge Storage Unit Superbattery Advanced Targeting Computer Advanced Targeting Computer > --- WEAPON ----------- Improved Assault Rifle Minigun > --- INVENTORY -------- Improved Ion Engine Improved Treads Improved Treads Improved Treads Wheel Improved Flight Unit Improved Flight Unit Improved Flight Unit Improved Flight Unit Improved Flight Unit Cesium-ion Thruster Cesium-ion Thruster Cesium-ion Thruster Hacking Suite Hacking Suite Improved Assault Rifle Shock Bomb Launcher Mini Grenade Launcher Mini Grenade Launcher Mini Grenade Launcher Mini Grenade Launcher Datajack Plasma Cutter Scythe Scythe [Rating: 42] Favorites ----------- Power Improved Ion Engine Engine Improved Ion Engine Propulsion Light Treads Treads Light Treads Leg Carbon-fiber Leg Wheel Wheel Flight Unit Improved VTOL Module Utility Advanced Targeting Computer Device Shield Generator Storage Huge Storage Unit Processor Advanced Targeting Computer Protection Core Shielding Weapon Improved Assault Rifle Ballistic Gun Improved Assault Rifle Launcher Mini Grenade Launcher Slashing Weapon Scythe Special Melee Weapon Datajack Build | -11 -10 -10 -9 -9 -9 -8 -8 ------- Run | Yrd Mat Min Mat Min Exi Min Mat Slots Evolved 4 | . . . 2 . . . 2 Power . | . . . . . . . . Propulsion 2 | . . . 1 . . . 1 Utility 2 | . . . 1 . . . 1 Weapon . | . . . . . . . . Parts Attached 81 | 6 7 . 24 8 2 1 33 Power 8 | 1 1 . 3 1 . . 2 Engine 8 | 1 1 . 3 1 . . 2 Core . | . . . . . . . . Reactor . | . . . . . . . . Propulsion 30 | 2 1 . 10 3 . . 14 Treads 25 | 2 1 . 9 1 . . 12 Leg 1 | . . . . . . . 1 Wheel 2 | . . . . 2 . . . Hover . | . . . . . . . . Flight 2 | . . . 1 . . . 1 Utility 18 | 1 1 . 8 . 1 . 7 Device 3 | . . . 1 . . . 2 Storage 5 | 1 1 . 2 . 1 . . Processor 3 | . . . 2 . . . 1 Hackware . | . . . . . . . . Protection 7 | . . . 3 . . . 4 Artifact . | . . . . . . . . Weapon 25 | 2 4 . 3 4 1 1 10 Energy Gun . | . . . . . . . . Energy Cannon . | . . . . . . . . Ballistic Gun 18 | 2 4 . 3 2 . . 7 Ballistic Cannon . | . . . . . . . . Launcher 4 | . . . . 1 . 1 2 Special Weapon . | . . . . . . . . Impact Weapon . | . . . . . . . . Slashing Weapon 2 | . . . . 1 . . 1 Piercing Weapon . | . . . . . . . . Special Melee Weapon 1 | . . . . . 1 . . Unidentified Prototypes 5 | . 1 . 2 . 1 . 1 Parts Lost 33 | . 1 1 6 8 . 1 16 Power 4 | . 1 . . 1 . . 2 Propulsion 17 | . . 1 4 4 . 1 7 Utility 4 | . . . 2 . . . 2 Weapon 8 | . . . . 3 . . 5 Highest Loss Streak 5 | . 1 1 2 5 . 1 3 To Critical Strikes 2 | . . . 1 . . 1 . Average Backups 18 | 2 7 10 17 19 18 18 22 Power . | . . . 1 1 1 1 . Propulsion 6 | 2 4 5 5 5 5 5 9 Utility 2 | . . . 1 3 3 3 3 Weapon 7 | . 3 5 8 8 8 8 7 Tool/Special . | . . . . . . . . Unused Backups 30 | . . . 7 . . . 23 Power 4 | . . . 3 . . . 1 Propulsion 16 | . . . 3 . . . 13 Utility 7 | . . . . . . . 7 Weapon 2 | . . . 1 . . . 1 Tool/Special 1 | . . . . . . . 1 Average Slot Usage (%) 92 | . 84 77 90 93 100 88 95 Engine 10 | . 13 14 11 10 11 11 8 Treads 29 | . 28 20 32 22 22 11 31 Wheel 1 | . . . . 9 11 11 . Device 1 | . . . . . . . 3 Storage 13 | . 14 14 11 11 16 22 14 Processor 10 | . . . 9 22 16 11 10 Protection 4 | . . . 4 . . . 7 Ballistic Gun 19 | . 28 28 21 12 11 11 17 Peak Build Rating 42 | 6 11 11 24 24 27 28 42 Average Rating 23 | 5 8 10 19 21 24 27 33 On Entrance 15 | . 6 11 10 24 22 27 27 Avg Prop Armor Cover (%) 19 | . . . . 21 21 13 10 Naked Turns . | . . . . . . . . Heaviest Build 100 | 14 21 19 93 93 95 95 100 Greatest Support 91 | 40 40 40 63 60 10 10 91 Greatest Overweight (x) 9 | 3 . . 1 9 9 9 9 Average Overweight (x) 1 | . . . . 7 9 9 1 Largest Inventory Capacity 25 | 8 10 10 25 25 25 25 25 Average Capacity 20 | 7 9 10 19 25 25 25 25 Most Carried 25 | 4 10 10 25 25 18 18 25 Average Carried 18 | 1 7 10 17 19 18 18 22 Final Capacity 25 | 8 10 10 25 25 25 25 25 Final Carried 25 | 4 10 10 25 18 18 18 24 Class Distribution -------------------- 63% | Mutant 36% | Scavenger-Mutant Dominant Class ---------------- Mutant | -10/Materials Mutant | -10/Mines Scavenger-Mutant | -9/Materials Scavenger-Mutant | -9/Mines Scavenger-Mutant | -9/Exiles Mutant | -8/Mines Mutant | -8/Materials Resources | -11 -10 -10 -9 -9 -9 -8 -8 ----------- Run | Yrd Mat Min Mat Min Exi Min Mat Matter Collected 3761 | 279 532 . 1094 242 . . 1614 Remotely . | . . . . . . . . Salvage Created 6072 | 65 1011 29 1876 128 . 2 2961 Parts 353 | 6 59 6 116 . . 5 161 Haulers Intercepted 14 | . 2 . 6 . . . 6 Recyclers Shooed 7 | . 2 . 4 . . . 1 Parts Field Recycled . | . . . . . . . . Retrieved Matter . | . . . . . . . . Parts Self-Destructed . | . . . . . . . . Prevented . | . . . . . . . . Parts Restored . | . . . . . . . . Kills | -11 -10 -10 -9 -9 -9 -8 -8 ------- Run | Yrd Mat Min Mat Min Exi Min Mat Combat Hostiles Destroyed 111 | . 20 2 30 12 . 4 43 Melee 5 | . . . . . . . 5 Guns 96 | . 20 2 30 8 . . 36 AOE 10 | . . . . 4 . 4 2 Classes Destroyed 14 | 2 7 . 2 1 . . 2 Worker 13 | . 3 . 4 . . . 6 Builder 3 | . 1 . . . . . 2 Tunneler 1 | 1 . . . . . . . Hauler 14 | . 2 . 6 . . . 6 Recycler 11 | 1 2 . 2 . . . 6 Operator 6 | . 1 . 3 . . . 2 Watcher 7 | . 2 . 2 . . . 3 Swarmer 22 | . 9 2 3 . . 4 4 Grunt 54 | . 11 . 17 . . . 26 Brawler 1 | . . . . . . . 1 Duelist 1 | . . . 1 . . . . Sentry 19 | . . . 9 . . . 10 Hunter 2 | . . . . . . . 2 Assembled 12 | . . . . 12 . . . Best Kill Streak 6 | 2 5 2 4 4 . 4 6 Combat Bots Only 4 | . 4 2 4 4 . 4 4 Max Kills in Single Turn 4 | 1 2 1 1 1 . 4 2 Gunslinging 1 | . 1 . . . . . 1 Exploded 4 | . . . . 1 . 4 1 Melee 1 | . . . . . . . 1 Uniques/NPCs Destroyed . | . . . . . . . . Combat | -11 -10 -10 -9 -9 -9 -8 -8 -------- Run | Yrd Mat Min Mat Min Exi Min Mat Hostile Shots Fired 606 | . 108 8 128 78 . 8 276 Missed 167 | . 34 2 38 18 . 3 72 Hits 439 | . 74 6 90 60 . 5 204 Melee 21 | . . . 5 10 . . 6 Projectile 418 | . 74 6 85 50 . 5 198 AOE 5 | . . . . 5 . . . Critical Strikes 20 | . 1 . 5 1 . 1 12 Actively Blocked 1 | . . . . . . . 1 Part Disruptions 1 | . . . . 1 . . . Damage Taken 6578 | . 764 45 1302 1222 . 109 3136 Core 950 | . 113 9 97 160 . 17 554 Absorbed by Shields 208 | . . . . . . . 208 Redirected to Shielding 20 | . . . . . . . 20 Core Remaining (%) 60 | 100 . 51 . . . 31 . Volleys Fired 431 | 7 83 4 118 40 . 2 177 Largest 2 | 2 2 2 2 2 . 1 2 Hottest 59 | 40 46 46 50 50 . 30 59 Shots Fired 799 | 14 166 8 218 53 . 2 338 Gun 789 | 14 166 8 218 49 . . 334 Cannon . | . . . . . . . . Launcher 10 | . . . . 4 . 2 4 Special . | . . . . . . . . Kinetic 789 | 14 166 8 218 49 . . 334 Thermal . | . . . . . . . . Explosive 6 | . . . . 4 . 2 . Electromagnetic 4 | . . . . . . . 4 Robot Hit Streak 45 | 2 8 3 18 9 . 1 45 Robot Miss Streak 5 | 2 5 1 3 3 . 1 3 Penetration Max 1 | . . . . . . . 1 Secondary Targets 15 | . 6 . 2 1 . . 6 Max Gunslinging Chain 1 | . 1 . 1 1 . . 1 Shots Hit Robots 611 | 7 103 5 164 34 2 1 295 Core Hits 263 | 3 44 2 65 25 . 7 117 Critical Kills 3 | . 1 . . . . . 2 Critical Parts Destroyed 5 | . . 1 2 . . . 2 Critical Strikes 10 | . 1 1 2 . . . 6 Destroy 8 | . 1 1 2 . . . 4 Sever 2 | . . . . . . . 2 Melee Attacks 13 | . . . . . 2 . 11 Impact . | . . . . . . . . Slashing 11 | . . . . . . . 11 Piercing . | . . . . . . . . Sneak Attacks 4 | . . . . . 2 . 2 Combat Hostiles 1 | . . . . . . . 1 Follow-up Attacks . | . . . . . . . . Damage Inflicted 10835 | 108 1512 97 2726 792 . 244 5356 Guns 9460 | 108 1494 90 2617 552 . . 4599 Cannons . | . . . . . . . . Explosions 724 | . . . . 235 . 244 245 Melee 388 | . . . . . . . 388 Ramming 263 | . 18 7 109 5 . . 124 Kinetic 9460 | 108 1494 90 2617 552 . . 4599 Thermal . | . . . . . . . . Explosive 479 | . . . . 235 . 244 . Electromagnetic 245 | . . . . . . . 245 Impact . | . . . . . . . . Slashing 388 | . . . . . . . 388 Piercing . | . . . . . . . . Highest Corruption 2 | . 2 2 2 2 2 2 . Average Corruption 1 | . 2 2 1 2 2 2 . Corruption Purged . | . . . . . . . . Corruption Blocked . | . . . . . . . . Effects 59 | . 13 4 26 9 6 1 . Message Errors 14 | . 3 1 6 3 1 . . Matter Fused 17 | . 1 . 12 2 1 1 . Heat Flow Errors 7 | . 1 . 3 1 2 . . Energy Discharges 7 | . 3 2 2 . . . . Parts Fused 1 | . 1 . . . . . . Data Loss (minor) 10 | . 2 1 2 3 2 . . Misfires 2 | . 1 . 1 . . . . Weapon Failures 1 | . 1 . . . . . . Overload Shots . | . . . . . . . . Overflow Damage 37 | . . . . . . . 37 Projectiles . | . . . . . . . . Explosions . | . . . . . . . . Melee 37 | . . . . . . . 37 Knockbacks 1 | . . . 1 . . . . Impact 1 | . . . 1 . . . . Kinetic . | . . . . . . . . Secondary . | . . . . . . . . Self-Inflicted Damage 135 | . . . . 6 . 73 56 Shots 7 | . . . . 1 . 2 4 Rammed 32 | 2 4 2 11 1 . . 12 Targets Rammed 41 | 2 4 2 14 1 . . 18 Kicked 1 | . . . . . . . 1 Crushed 8 | . . . 3 . . . 5 Highest Temperature 219 | . 143 . 219 196 184 . 44 Average Temperature 19 | . 27 . 27 22 93 . 7 Received Heat Transfer 2199 | . 279 . 492 120 . . 1308 Siege Activations . | . . . . . . . . Martial Activations . | . . . . . . . . Shielding Activations . | . . . . . . . . Robots Disrupted . | . . . . . . . . Combat Hostiles . | . . . . . . . . Robots Corrupted . | . . . . . . . . Combat Hostiles . | . . . . . . . . Parts Fried . | . . . . . . . . Impact Corruptions . | . . . . . . . . Robots Melted . | . . . . . . . . Combat Hostiles . | . . . . . . . . Parts Melted . | . . . . . . . . Heat Transferred . | . . . . . . . . Parts Sabotaged . | . . . . . . . . Parts Stolen . | . . . . . . . . Parts Stripped . | . . . . . . . . Power Chain Reactions . | . . . . . . . . Alert | -11 -10 -10 -9 -9 -9 -8 -8 ------- Run | Yrd Mat Min Mat Min Exi Min Mat Maximum Alert Level 2 | . . . 1 . . . 2 Low Security (%) 68 | 100 100 100 73 100 . 100 47 Level 1 14 | . . . 26 . . . 13 Level 2 17 | . . . . . . . 39 Level 3 . | . . . . . . . . Level 4 . | . . . . . . . . Level 5 . | . . . . . . . . High Security . | . . . . . . . . Max Security . | . . . . . . . . Peak Influence 550 | 10 187 55 308 106 . 113 550 Initial 106 | . . . 3 106 . . 20 Average 173 | . 67 18 149 10 . 80 264 Influence Increases 3228 | 10 589 70 1065 19 . 123 1352 Destroy 0b10 Robot/C 1980 | . 400 40 600 . . 80 860 Destroy 0b10 Robot/NC 275 | 10 55 . 85 . . . 125 Destroy Leader 512 | . 88 . 196 . . 10 218 Successful Hack 94 | . 28 . 44 . . . 22 Disable Machine 105 | . 15 . 45 . . 15 30 Destroy Structure 52 | . 3 . 5 19 . 18 7 Lose Combat Pursuer 210 | . . 30 90 . . . 90 Influence Decreases 2698 | 10 589 60 802 292 . 70 875 Entered New Map 207 | . . . 7 167 . . 33 Time Decay 1925 | 10 429 60 604 60 . 60 702 Lost Part 280 | . 10 . 55 65 . 10 140 Purge Threat 286 | . 150 . 136 . . . . Squads Dispatched 21 | . 5 . 6 . . . 10 Investigation 12 | . 4 . 4 . . . 4 Extermination . | . . . . . . . . Reinforcement 6 | . 1 . 2 . . . 3 Assault 1 | . . . . . . . 1 Garrison 2 | . . . . . . . 2 Intercept . | . . . . . . . . Searches Triggered . | . . . . . . . . Construction Impeded . | . . . . . . . . Haulers Reinforced . | . . . . . . . . Active Scanning Responses . | . . . . . . . . Cargo Convoy Interrupts . | . . . . . . . . Stealth | -11 -10 -10 -9 -9 -9 -8 -8 --------- Run | Yrd Mat Min Mat Min Exi Min Mat Distress Signals 10 | . 1 . 3 . . . 6 Communications Jammed . | . . . . . . . . Distress Signals . | . . . . . . . . Times Spotted 213 | . 31 4 63 28 . 4 83 Peak Tracking Total 16 | . 6 3 7 16 . 4 5 Tactical Retreats 12 | . . 2 4 2 . . 4 Traps | -11 -10 -10 -9 -9 -9 -8 -8 ------- Run | Yrd Mat Min Mat Min Exi Min Mat Traps Triggered 8 | . 3 . 4 . . . 1 Indirectly . | . . . . . . . . Trap Hack Attempts . | . . . . . . . . Triggered . | . . . . . . . . Disarmed . | . . . . . . . . Reprogrammed . | . . . . . . . . Reused . | . . . . . . . . Traps Extracted . | . . . . . . . . Installed . | . . . . . . . . Triggered . | . . . . . . . . Machines | -11 -10 -10 -9 -9 -9 -8 -8 ---------- Run | Yrd Mat Min Mat Min Exi Min Mat Machines Disabled 7 | . 1 . 3 . . 1 2 Max in Single Turn 1 | . 1 . 1 . . 1 1 Garrison Access 1 | . . . . . . . 1 Machines Repaired . | . . . . . . . . Machines Dismantled . | . . . . . . . . Machines Sabotaged . | . . . . . . . . Overloaded Fab Kills . | . . . . . . . . Hacking | -11 -10 -10 -9 -9 -9 -8 -8 --------- Run | Yrd Mat Min Mat Min Exi Min Mat Machines Accessed 28 | . 8 . 12 . . . 8 Terminals 22 | . 7 . 10 . . . 5 Fabricators . | . . . . . . . . Repair Stations . | . . . . . . . . Recycling Units 1 | . 1 . . . . . . Scanalyzers 4 | . . . 2 . . . 2 Garrison Access 1 | . . . . . . . 1 Total Hacks 95 | . 25 . 42 . . . 28 Successful 53 | . 12 . 22 . . . 19 Failed 42 | . 13 . 20 . . . 9 Catastrophic 12 | . 3 . 9 . . . . Database Lockouts . | . . . . . . . . Manual 64 | . 21 . 27 . 1 . 15 Terminals 71 | . 22 . 32 . . . 17 Fabricators . | . . . . . . . . Repair Stations . | . . . . . . . . Recycling Units 3 | . 3 . . . . . . Scanalyzers 19 | . . . 10 . . . 9 Garrison Access 2 | . . . . . . . 2 Terminal Hacks 12 | . 3 . 5 . . . 4 Record 1 | . . . . . . . 1 Prototype ID Bank 2 | . . . 2 . . . . Branch Access Points 2 | . . . 1 . . . 1 Unreport Threat 3 | . 2 . 1 . . . . Recall Investigation 2 | . 1 . 1 . . . . Recall Reinforcements 1 | . . . . . . . 1 Hauler Manifests 1 | . . . . . . . 1 Fabricator Hacks . | . . . . . . . . Repair Station Hacks . | . . . . . . . . Recycling Unit Hacks 1 | . 1 . . . . . . Retrieve Components 1 | . 1 . . . . . . Scanalyzer 17 | . . . 9 . . . 8 Insert Component 9 | . . . 4 . . . 5 Analyze 7 | . . . 4 . . . 3 Retrieve Study 1 | . . . 1 . . . . Garrison Access Hacks 1 | . . . . . . . 1 Seal Access 1 | . . . . . . . 1 Unauthorized Hacks 22 | . 8 . 8 . . . 6 Terminals 22 | . 8 . 8 . . . 6 Botnet 19 | . 7 . 7 . . . 5 Operators 3 | . 1 . 1 . . . 1 Fabricators . | . . . . . . . . Repair Stations . | . . . . . . . . Recycling Units . | . . . . . . . . Scanalyzers . | . . . . . . . . Garrison Access . | . . . . . . . . Data Cores Recovered . | . . . . . . . . Used . | . . . . . . . . Hacking Detections 25 | . 7 . 11 . . . 7 Full Trace Events 13 | . 3 . 7 . . . 3 Feedback Events . | . . . . . . . . Feedback Blocked . | . . . . . . . . Robot Schematics Acquired . | . . . . . . . . Robots Built . | . . . . . . . . Authchips . | . . . . . . . . Time . | . . . . . . . . Total Robot Build Rating . | . . . . . . . . Part Schematics Acquired 6 | . . . 4 . . . 2 Parts Built . | . . . . . . . . Authchips . | . . . . . . . . Time . | . . . . . . . . Total Part Build Rating . | . . . . . . . . Part Studies Acquired 1 | . . . 1 . . . . Parts Repaired . | . . . . . . . . Time . | . . . . . . . . Parts Recycled . | . . . . . . . . Recycled Matter . | . . . . . . . . Retrieved Matter . | . . . . . . . . Retrieved Components 10 | . 10 . . . . . . Parts Scanalyzed 7 | . . . 4 . . . 3 Part Schematics Acquired 6 | . . . 4 . . . 2 Parts Damaged . | . . . . . . . . Bothacking | -11 -10 -10 -9 -9 -9 -8 -8 ------------ Run | Yrd Mat Min Mat Min Exi Min Mat Used RIF Installer . | . . . . . . . . Robots Hacked 2 | . . . . . 2 . . Non-combat 1 | . . . . . 1 . . Combat 1 | . . . . . 1 . . Robot Hacks Applied 2 | . . . . . 2 . . parse_system 2 | . . . . . 2 . . Relay Couplers Released . | . . . . . . . . Fabnet Peak Effective % . | . . . . . . . . Robots Rewired . | . . . . . . . . Allies Hacked . | . . . . . . . . Hacks Repelled . | . . . . . . . . Allies | -11 -10 -10 -9 -9 -9 -8 -8 -------- Run | Yrd Mat Min Mat Min Exi Min Mat Total Allies . | . . . . . . . . Largest Group . | . . . . . . . . Highest-Rated Group . | . . . . . . . . Highest-Rated Ally . | . . . . . . . . Total Orders . | . . . . . . . . Ally Attacks . | . . . . . . . . Total Damage . | . . . . . . . . Kills . | . . . . . . . . Allies Corrupted . | . . . . . . . . Allies Melted . | . . . . . . . . Intel | -11 -10 -10 -9 -9 -9 -8 -8 ------- Run | Yrd Mat Min Mat Min Exi Min Mat Active Infowar (turns) . | . . . . . . . . Robot Analysis Total . | . . . . . . . . Derelict Logs Recovered 1 | . . . . 1 . . . Drone Launches . | . . . . . . . . Drone Recoveries . | . . . . . . . . Exploration | -11 -10 -10 -9 -9 -9 -8 -8 ------------- Run | Yrd Mat Min Mat Min Exi Min Mat Turns Passed 10693 | 120 1343 200 3237 718 563 137 4375 Spaces Moved 4019 | 52 624 115 1416 295 209 62 1246 Core 11 | 11 . . . . . . . Treads 3392 | 41 624 115 1416 18 . . 1178 Legs 29 | . . . . . . . 29 Wheels 587 | . . . . 277 209 62 39 Hover . | . . . . . . . . Flight . | . . . . . . . . Fastest Speed 50 | 50 160 160 160 200 215 215 215 Average Speed 205 | 160 160 160 192 209 215 215 246 Slowest Speed 540 | 200 160 160 240 320 215 215 540 Overloaded Moves . | . . . . . . . . Propulsion Burnouts . | . . . . . . . . Robots Hopped . | . . . . . . . . Potential Cave-ins . | . . . . . . . . Cave-ins Triggered . | . . . . . . . . Exploration Rate (%) 57 | 5 93 36 97 64 60 23 79 Regions Visited 7 Branch Regions 4 Pre-discovered Areas . | . . . . . . . . Known Exits Taken 1 | . . . 1 . . . . Unknown Exits Taken 6 | 1 1 1 . 1 1 1 . Scrap Searched 1 | . . . . 1 . . . Spaces Dug . | . . . . . . . . Terrain Destroyed 47 | . . . . 25 . 22 . Melee . | . . . . . . . . Projectile . | . . . . . . . . AOE 47 | . . . . 25 . 22 . Terrain Rammed . | . . . . . . . . Walls Destroyed . | . . . . . . . . Machines Disabled . | . . . . . . . . Actions | -11 -10 -10 -9 -9 -9 -8 -8 --------- Run | Yrd Mat Min Mat Min Exi Min Mat Total 5629 | 70 803 122 1712 351 321 64 2186 Wait 934 | . 69 2 100 6 109 . 648 Move 4012 | 51 623 114 1415 294 208 61 1246 Hop . | . . . . . . . . Pick Up 59 | 4 7 . 22 1 . . 25 Fast Attach 27 | 6 3 . 8 . . . 10 Attach 23 | . . . 4 8 . . 11 Detach . | . . . . . . . . Swap 49 | . 6 . 17 1 2 1 22 Drop 40 | . 8 . 14 . . . 18 Fire 431 | 7 83 4 118 40 . 2 177 Melee 13 | . . . . . 2 . 11 Ram . | . . . . . . . . Kick 1 | . . . . . . . 1 Crush 40 | 2 4 2 14 1 . . 17 Escape Stasis . | . . . . . . . . Rewire . | . . . . . . . . Trap . | . . . . . . . . Miscellaneous . | . . . . . . . . Route ------- -11/Scrapyard -10/Materials (discovered 4 exits: *Mat x2 / [*Min] / [*Sub]) -10/Mines -9/Materials (discovered 7 exits: *Mat x3 / *Min x2 / *Sto x2) -9/Mines (discovered 2 exits: *Exi / [*Zio]) -9/Exiles -8/Mines -8/Materials (discovered 2 exits: *Fac x2) History --------- Turn | Location | Event 34 | -11/Scrapyard | Discovered new exit (range 12) 121 | -11/Scrapyard | Entered Materials 312 | -10/Materials | Build established: Mutant 317 | -10/Materials | Discovered new exit (range 16) 967 | -10/Materials | Discovered new exit (range 6) 1135 | -10/Materials | Discovered new exit (range 15) 1292 | -10/Materials | Discovered new exit (range 7) 1464 | -10/Materials | Entered Mines 1654 | -10/Mines | Discovered new exit (range 7) 1664 | -10/Mines | Entered Materials 1664 | -9/Materials | Evolved 2 slots: Propulsion x1, Utility x1 1831 | -9/Materials | Discovered new exit (range 6) 2353 | -9/Materials | Discovered new exit (range 6) 2418 | -9/Materials | Build established: Scavenger-Mutant 2602 | -9/Materials | Discovered new exit (range 8) 2724 | -9/Materials | Build established: Mutant 3000 | -9/Materials | Discovered new exit (range 10) 3565 | -9/Materials | Discovered new exit (range 6) 3711 | -9/Materials | Build established: Scavenger-Mutant 3925 | -9/Materials | Discovered new exit (range 15) 3995 | -9/Materials | Discovered new exit (range 8) 4267 | -9/Materials | Identified exit to Mines 4267 | -9/Materials | Identified exit to Storage 4901 | -9/Materials | Entered Mines 4917 | -9/Mines | Assembled infested the area 4997 | -9/Mines | Lost 5 parts (3n2w) 5067 | -9/Mines | Core integrity fell below 50% 5085 | -9/Mines | Lost 3 parts (1p1n1w) 5250 | -9/Mines | A Derelict revealed a hidden shortcut to a safe place 5579 | -9/Mines | Learned 4 Materials zone layouts 5610 | -9/Mines | Deemed a non-threat by the Exiles lab entrance 5610 | -9/Mines | Discovered new exit (range 5) 5619 | -9/Mines | Entered Exiles 5673 | -9/Exiles | Met 8R-AWN 5715 | -9/Exiles | Met EX-HEX 5777 | -9/Exiles | Met EX-BIN 5813 | -9/Exiles | Aligned with FarCom system 5815 | -9/Exiles | Given EX-Vault access code 5869 | -9/Exiles | Opened EX-Vault 5875 | -9/Exiles | Found Prototype Storage 5875 | -9/Exiles | Identified Superbattery 6025 | -9/Exiles | Warned to stay clear of 0b10 Research branches 6087 | -9/Exiles | Met EX-DEC 6158 | -9/Exiles | Discovered new exit (range 14) 6182 | -9/Exiles | Left Exiles lab with Superbattery 6182 | -9/Exiles | Entered Mines 6291 | -8/Mines | Discovered new exit (range 14) 6319 | -8/Mines | Entered Materials 6319 | -8/Materials | Evolved 2 slots: Propulsion x1, Utility x1 6320 | -8/Materials | Identified exit to Factory 6485 | -8/Materials | Build established: Mutant 6995 | -8/Materials | Build established: Scavenger-Mutant 7861 | -8/Materials | Build established: Mutant 8091 | -8/Materials | Core integrity fell below 50% 8593 | -8/Materials | Discovered exit to Factory (range 15) 8894 | -8/Materials | Garrison activated, responded to threat 8961 | -8/Materials | Core integrity fell below 20% 8991 | -8/Materials | Lost 3 parts (3n) 10319 | -8/Materials | First assault squad dispatched 10694 | -8/Materials | Destroyed by G-50 Soldier with Heavy Laser Last Messages --------------- Acquired 47 matter. Acquired 57 matter. Acquired 20 matter. Acquired 3 matter. C-45 Heavy ARC bursts open, deploying its payload. G-50 Soldier unfolds itself. L-31 Rogue unfolds itself. G-47 Trooper unfolds itself. I-25 Savior unfolds itself. G-47 Trooper destroyed. G-47 Trooper IFF system glitched. Hvy. Assault Rifle severed. G-50 Soldier IFF system glitched. U-05 Engineer lays Concrete. Shield Generator destroyed. Adv. Treads destroyed. Critical hit (Burn: +37). U-05 Engineer lays Concrete. G-47 Trooper misfires. Map ----- +----------------------------------------------------+ | ??????????????????????????????????????# #??? | | ??????????????????????????????######### #??? | | ??????????????????????????????# "" ## #??? | | ??????????????????????????????# ""S ## #??? | | ??????????????????????????????# "" ## +??? | | ??????????????????????????????# ## #### | | ??????????????????????????????# ## ## | | ??????????????????????????????# ## ## | | ????????????????????##############+### #! | | ????????????????????# !**+ % # | | ????????????????????# =!%# % + | | ????????????????????#"""===# % # " | | ????????????????????#"""[!=+%% ###+### # " | | ????????????????????#""" [!# ## [ ## ## " | | ????????????????????# # ## ## #### | | ????????????????????######## ## ## #### | | ???????????????????????????# ## ## | | ???????????????????????????# ## ## #### | | ??????????????????######???# ## ## ## | | ?????????????????##!!!!##??# ## ## ## | | ?????????????????#! !#??# ## # # | | ???????????####### #??# ## # # | | ???????????# # #### ####### % + | | ???????????# ig %#?????# # | | ???????????# gu% #?????# # | | ???????????# @l[%= #?????####### | | ???????????# ########### #???????????# | | ???????????## ##?????????# #???????????# | | ????????????# #??????????# #???????????# | | ????????????# #??????????# #???????????# | | ????????????# #??????????# #???????????#! | | ????????????# #??????????# #???????????### | | ???########## #??????????# #??????????#### | | ???# # #??????????# ########???# | | ???# # #??????????# # ! * #???# ## | | ???# # #??????????# # #???# #? | | ???# # #??????????# + """ #???# #? | | ???# + #??????????# # """ *#???# #? | | ???# # #???##?##### # """ #???# #? | | ???# # #???# # # #???# #? | | ???# # #???# """ # ########???# #? | | ???# # #???# """ # #??????????# #? | | ??#######+### #???# """ # #??????????# #? | | ??# =%* # #???# # #??????????# #? | | ??# = T + #???# """ # #????????###+## | | ??# """ [=# #???# """ + +????????# | | ??# """"" # < #???# """ # #????????# """ | | ??# """"" [ # #???# # #????????# "G" | | ??? """"" #####???# """ # #????????# " " | | ???? """ #???????# """ # #????????# | +----------------------------------------------------+ Best States ------------- Heat Dissipation 31 Energy Generation 14 Energy Capacity 1780 Matter Stores 300 Matter Capacity 300 Sight Range 16 Terrain Scan Density 10 Armor Coverage 450 Core Shielding 20 Utility Shielding 33 Evasion (%) 40 Targeting Accuracy 16 Recoil Reduction 4 Item Schematics ----------------- Imp. Flight Unit | -9/Materials | Scanalyzed Hacking Suite | -9/Materials | Scanalyzed Imp. Ion Engine | -9/Materials | Scanalyzed Scythe | -9/Materials | Scanalyzed Cesium-ion Thruster | -8/Materials | Scanalyzed Imp. VTOL Module | -8/Materials | Scanalyzed Robot Schematics ------------------ None Fabricated ------------ Nothing Repaired ---------- Nothing Studied --------- Imp. Ion Engine | -9/Materials | Hacked Alien Tech Used ----------------- None Achievements -------------- Fist Fight Gun Specialist That Tickles Well-fed Force Field Challenges ------------ None Game ------ Seed ActuatorModifiedParser Manual? 0 Play Time 01:04:09 Cumulative 6.9 hours Start 2026.01.05 @ 18:53:13 End 2026.01.05 @ 19:58:52 Sessions 1 Manual Loads 0 Difficulty Rogue Special Mode None Game No. 11 Rogue 11 Adventurer 0 Explorer 0 Win Type - Total 0 Types 0/0/0/0/0/0/0/0/0/0 Lore% 2 Gallery% 12 Achievement% 14 Wizard Run 0 Options --------- Layout 1 ASCII 0 Keyboard 1 Movement Vi Keybinds 0 Fullscreen 1 Font 24/Smallcaps Map View 50x35 Zoom Use 0% Tactical HUD 0 Map Filters NONE Filters NONE Steam 1 RUN: 5a500644-721d-4f77-9f41-fd4c78706907